bitfinex/quotes_BTCUSD_20250226
["timestamp","ask_amount","ask_price","bid_price","bid_amount"]
[1740569592251,0.48931737,89098.0,89097.0,0.07822506]
[1740569592436,0.48931737,89098.0,89097.0,0.07922506]
[1740569593777,0.3,89089.0,89081.0,0.0788]
[1740569593975,0.168386,89081.0,89080.0,0.00084195]
[1740569594297,0.168386,89081.0,89042.0,0.0788]
[1740569594298,0.468444,89050.0,89042.0,0.0788]
[1740569594908,0.30841202,89050.0,89049.0,0.1688701]
[1740569595037,0.00855303,89056.0,89051.0,0.168442]
[1740569595236,0.00855303,89056.0,89052.0,0.00157192]
[1740569595448,0.3,89063.0,89052.0,0.00157192]
[1740569595850,0.3,89061.0,89052.0,0.00057192]
[1740569596285,0.3,89061.0,89051.0,0.0009298]
[1740569596485,0.001,89056.0,89052.0,0.007]
[1740569596686,0.001,89056.0,89053.0,0.0009298]
[1740569597038,0.001,89056.0,89055.0,0.247435]
[1740569597574,0.001,89056.0,89055.0,0.26197585]
[1740569597779,0.01148637,89056.0,89055.0,0.26197585]
[1740569598843,0.0313913,89056.0,89055.0,0.26197585]
[1740569599046,0.0323913,89056.0,89055.0,0.26497585]
[1740569599252,0.02290493,89056.0,89055.0,0.10154085]
[1740569599650,0.02290493,89056.0,89055.0,0.26997585]
[1740569599939,0.02290493,89056.0,89055.0,0.32431425]
[1740569600091,0.02290493,89056.0,89055.0,0.10154085]
[1740569600302,0.02190493,89056.0,89055.0,0.10818085]
[1740569600497,0.02190493,89056.0,89055.0,0.10518085]
[1740569601033,0.02190493,89056.0,89055.0,0.27361585]
[1740569601373,0.02190493,89056.0,89055.0,0.10518085]
[1740569601774,0.02290493,89056.0,89055.0,0.11118085]
[1740569602022,0.02290493,89056.0,89055.0,0.35737785]
[1740569602477,0.02190493,89056.0,89055.0,0.18694285]
[1740569602682,0.02290493,89056.0,89055.0,0.11218085]
[1740569603397,0.002,89056.0,89055.0,0.11218085]
[1740569603515,0.170433,89056.0,89055.0,0.10254085]
[1740569603711,0.002,89056.0,89055.0,0.10254085]
[1740569604888,0.0028488,89056.0,89055.0,0.32642649]
[1740569605615,0.0028088,89056.0,89055.0,0.32642649]
[1740569605974,0.02368732,89056.0,89055.0,0.32642649]
[1740569606173,0.02368732,89056.0,89055.0,0.15799149]
[1740569607778,0.02368732,89056.0,89055.0,0.32642649]
[1740569607980,0.03412538,89056.0,89055.0,0.15799149]
[1740569608808,0.20255838,89056.0,89055.0,0.15799149]
[1740569609019,0.20255838,89056.0,89055.0,0.088]
[1740569609218,0.20255838,89056.0,89055.0,0.009]
[1740569611930,0.00829296,89069.0,89055.0,0.009]
[1740569612133,0.00829296,89069.0,89056.0,0.07682986]
[1740569612424,0.168421,89063.0,89058.0,0.0471]
[1740569612626,0.168416,89065.0,89058.0,0.0471]
[1740569612849,0.46841,89068.0,89058.0,0.0471]
[1740569613079,0.3,89068.0,89058.0,0.0471]
[1740569613248,0.46841,89068.0,89058.0,0.0471]
[1740569613450,0.3,89068.0,89059.0,0.05358766]
[1740569613907,0.00829296,89069.0,89059.0,0.05358766]
[1740569614111,0.3,89068.0,89058.0,0.0491]
[1740569614319,0.3,89068.0,89058.0,0.217529]
[1740569614602,0.22455,89067.0,89058.0,0.0491]
[1740569614784,0.3,89068.0,89058.0,0.0511]
[1740569615178,0.17670196,89069.0,89058.0,0.217528]
[1740569615355,0.00829296,89069.0,89059.0,0.07633792]
[1740569615555,0.3,89068.0,89059.0,0.168427]
[1740569615757,0.3,89068.0,89060.0,0.0009296]
[1740569615958,0.00829296,89069.0,89062.0,0.16842]
[1740569616170,0.00829296,89069.0,89062.0,0.00092939]
[1740569616488,0.00829296,89069.0,89063.0,0.0793]
[1740569616687,0.00829296,89069.0,89064.0,0.00092928]
[1740569617216,0.00914156,89069.0,89064.0,0.00092928]
[1740569617392,0.0008486,89069.0,89068.0,0.16841]
[1740569617633,0.0008486,89069.0,89068.0,0.31877085]
[1740569618074,0.0008486,89069.0,89068.0,0.33877085]
[1740569618269,0.0008486,89069.0,89068.0,0.46250794]
[1740569618697,0.00864725,89102.0,89081.0,0.01454085]
[1740569618907,0.02316559,89108.0,89085.0,0.01454085]
[1740569619110,0.168344,89103.0,89085.0,0.09754085]
[1740569619264,0.168343,89104.0,89091.0,0.01454085]
[1740569619609,0.168347,89102.0,89093.0,0.01454085]
[1740569619917,0.02316559,89108.0,89093.0,0.01454085]
[1740569619918,0.02512953,89108.0,89093.0,0.01454085]
[1740569620073,0.02512953,89108.0,89088.0,0.01454085]
[1740569620274,0.02519525,89108.0,89088.0,0.01454085]
[1740569620476,0.224469,89099.0,89085.0,0.083]
[1740569620675,0.02323131,89108.0,89086.0,0.0172415]
[1740569620878,0.22641295,89107.0,89093.0,0.002]
[1740569621066,0.003,89103.0,89093.0,0.002]
[1740569621264,0.16836,89095.0,89093.0,0.002]
[1740569621464,0.224449,89107.0,89093.0,0.002]
[1740569621685,0.22641296,89107.0,89093.0,0.002]
[1740569621884,0.02423131,89108.0,89093.0,0.002]
[1740569622102,0.168361,89094.0,89093.0,0.00972]
[1740569623828,0.168361,89094.0,89093.0,0.005]
[1740569624452,0.168361,89094.0,89093.0,0.008]
[1740569628066,0.168361,89094.0,89093.0,0.005]
[1740569629025,0.3,89095.0,89085.0,0.09272]
[1740569629327,0.3,89103.0,89086.0,0.009272]
[1740569629511,0.168372,89089.0,89086.0,0.009272]
[1740569629908,0.224482,89094.0,89086.0,0.009272]
[1740569630070,0.168373,89088.0,89086.0,0.009272]
[1740569630274,0.168374,89087.0,89086.0,0.009272]
[1740569630488,0.0019642,89098.0,89085.0,0.001]
[1740569630489,0.168376,89086.0,89085.0,0.001]
[1740569630684,0.224473,89098.0,89052.0,0.0004244]
[1740569630685,0.01559787,89087.0,89068.0,0.0778]
[1740569630913,0.168408,89069.0,89068.0,0.0778]
[1740569631140,0.168414,89066.0,89065.0,0.00972]
[1740569632197,7.036e-05,89066.0,89065.0,0.00972]
[1740569633283,0.19064921,89066.0,89065.0,0.02345443]
[1740569633608,0.19064921,89066.0,89065.0,0.02645443]
[1740569633867,0.02223521,89066.0,89065.0,0.01772]
[1740569634232,0.224534,89073.0,89065.0,0.01772]
[1740569634437,0.224504,89085.0,89065.0,0.01772]
[1740569634661,0.168414,89066.0,89065.0,0.01772]
[1740569634860,0.18826788,89066.0,89065.0,0.01772]
[1740569635175,0.18826788,89066.0,89065.0,0.01472]
[1740569635354,0.18826788,89066.0,89065.0,0.00972]
[1740569635756,0.18826788,89066.0,89065.0,0.01172]
[1740569635954,0.16842,89063.0,89062.0,0.0772]
[1740569636865,0.16842,89063.0,89062.0,0.08593443]
[1740569637244,0.01985388,89066.0,89062.0,0.08593443]
[1740569637447,0.224506,89085.0,89062.0,0.0842]
[1740569637679,0.168408,89070.0,89062.0,0.0842]
[1740569638001,0.168414,89066.0,89062.0,0.0842]
[1740569638159,0.00103531,89083.0,89062.0,0.0842]
[1740569638160,0.224532,89074.0,89062.0,0.0842]
[1740569638363,0.16842,89063.0,89062.0,0.0842]
[1740569638599,0.16842,89063.0,89062.0,0.0802]
[1740569638824,0.16842,89063.0,89062.0,0.0772]
[1740569639014,0.16842,89063.0,89062.0,0.0802]
[1740569639212,0.16842,89063.0,89062.0,0.0772]
[1740569639621,0.16842,89063.0,89062.0,0.0812]
[1740569640210,0.16842,89063.0,89062.0,0.0832]
[1740569640609,0.16842,89063.0,89062.0,0.0812]
[1740569640815,0.224532,89074.0,89062.0,0.0812]
[1740569641026,0.16842,89063.0,89062.0,0.0842]
[1740569641670,0.16842,89063.0,89062.0,0.0812]
[1740569641893,0.224556,89065.0,89062.0,0.0812]
[1740569642716,0.1768596,89063.0,89062.0,0.0004241]
[1740569642924,0.4768596,89063.0,89062.0,0.0004241]
[1740569643526,0.4768596,89063.0,89062.0,0.0034241]
[1740569644083,0.4768596,89063.0,89062.0,0.0044241]
[1740569644288,0.4768596,89063.0,89062.0,0.0004241]
[1740569645640,0.4768596,89063.0,89062.0,0.0014241]
[1740569647876,0.4768596,89063.0,89062.0,0.0822241]
[1740569647877,0.1768596,89063.0,89062.0,0.0822241]
[1740569648071,0.1768596,89063.0,89062.0,0.09048894]
[1740569648280,0.1768596,89063.0,89062.0,0.0822241]
[1740569649105,0.1768596,89063.0,89062.0,0.0014241]
[1740569649492,0.17789491,89063.0,89062.0,0.0014241]
[1740569650307,0.20786705,89063.0,89062.0,0.0014241]
[1740569650510,0.17789491,89063.0,89062.0,0.0014241]
[1740569651396,0.17989491,89063.0,89062.0,0.0014241]
[1740569651825,0.1788596,89063.0,89062.0,0.0014241]
[1740569652229,0.1788596,89063.0,89062.0,0.0823241]
[1740569652230,0.0104396,89063.0,89062.0,0.0823241]
[1740569652430,0.0114396,89063.0,89062.0,0.09654814]
[1740569652649,0.1798596,89063.0,89062.0,0.0823241]
[1740569652864,0.1768596,89063.0,89062.0,0.0004241]
[1740569653097,0.4788596,89063.0,89062.0,0.0004241]
[1740569653770,0.4768596,89063.0,89062.0,0.0034241]
[1740569654026,0.4778596,89063.0,89062.0,0.0034241]
[1740569654444,0.51348105,89063.0,89062.0,0.0034241]
[1740569654621,0.51248105,89063.0,89062.0,0.0004241]
[1740569654834,0.51248105,89063.0,89058.0,0.0004243]
[1740569654835,0.468427,89059.0,89058.0,0.0004243]
[1740569655035,0.49876871,89059.0,89058.0,0.0004243]
[1740569655480,0.468427,89059.0,89058.0,0.0004243]
[1740569656054,0.468427,89059.0,89058.0,0.00053684]
[1740569656596,0.468427,89059.0,89058.0,0.00153684]
[1740569657172,0.50404845,89059.0,89058.0,0.00153684]
[1740569657765,0.52495975,89059.0,89058.0,0.00153684]
[1740569657977,0.52795975,89059.0,89058.0,0.00153684]
[1740569659289,0.52795975,89059.0,89058.0,8.4e-07]
[1740569659488,0.50704845,89059.0,89058.0,8.4e-07]
[1740569659698,0.468439,89053.0,89052.0,0.0004244]
[1740569659898,0.468439,89053.0,89052.0,0.00084271]
[1740569660310,0.168478,89032.0,89031.0,0.0835]
[1740569660506,0.47690349,89032.0,89031.0,0.0835]
[1740569661089,0.468478,89032.0,89031.0,0.0835]
[1740569661688,0.469478,89032.0,89031.0,0.0895]
[1740569662496,0.470478,89032.0,89031.0,0.0895]
[1740569663366,0.302,89032.0,89031.0,0.0895]
[1740569663881,0.470478,89032.0,89031.0,0.0895]
[1740569666427,0.470438,89032.0,89031.0,0.0865]
[1740569667455,0.170478,89032.0,89031.0,0.0865]
[1740569667913,0.170478,89032.0,89031.0,0.0869243]
[1740569668115,0.170478,89032.0,89031.0,0.0064243]
[1740569668334,0.168482,89030.0,89017.0,0.0459]
[1740569668454,0.16951731,89030.0,89017.0,0.0459]
[1740569670363,0.16951731,89030.0,89029.0,0.0014241]
[1740569672863,0.46951731,89030.0,89029.0,0.0014241]
[1740569673085,0.50569198,89030.0,89029.0,0.0014241]
[1740569674928,0.03720998,89030.0,89029.0,0.0014241]
[1740569675129,0.20672729,89030.0,89029.0,0.0014241]
[1740569680711,0.22762004,89030.0,89029.0,0.0014241]
[1740569680908,0.22658473,89030.0,89029.0,0.0014241]
[1740569682622,0.18937475,89030.0,89029.0,0.0014241]
[1740569682843,0.49041006,89030.0,89029.0,0.0014241]
[1740569683064,0.48937475,89030.0,89029.0,0.0014241]
[1740569683582,0.49982647,89030.0,89029.0,0.0014241]
[1740569684757,0.468497,89022.0,89021.0,1e-07]
[1740569685109,0.50492309,89022.0,89021.0,1e-07]
[1740569686009,0.50534143,89022.0,89021.0,1e-07]
[1740569686189,0.52623418,89022.0,89021.0,1e-07]
[1740569686414,0.52623418,89022.0,89007.0,0.0004242]
[1740569686415,0.468524,89008.0,89007.0,0.0004242]
[1740569687700,0.224696,89010.0,89007.0,0.0004242]
[1740569687904,0.168524,89008.0,89007.0,0.0004242]
[1740569688102,0.18941675,89008.0,89007.0,0.0014242]
[1740569688350,0.19779105,89008.0,89007.0,0.0014242]
[1740569688502,0.20824277,89008.0,89007.0,0.0014242]
[1740569688700,0.20807286,89008.0,89007.0,0.0014242]
[1740569689310,0.18718011,89008.0,89007.0,0.0014242]
[1740569689526,0.18718011,89008.0,89007.0,0.0799242]
[1740569689759,0.20810016,89008.0,89007.0,0.0799242]
[1740569695423,0.03974607,89008.0,89007.0,0.1249242]
[1740569696710,0.20827007,89008.0,89007.0,0.1249242]
[1740569697132,0.03974607,89008.0,89007.0,0.1249242]
[1740569697277,0.20827007,89008.0,89007.0,0.1249242]
[1740569697477,0.03974607,89008.0,89007.0,0.1249242]
[1740569700703,0.03137177,89008.0,89007.0,0.1249242]
[1740569700958,0.03137177,89008.0,89007.0,0.2934502]
[1740569701374,0.03137177,89008.0,89007.0,0.37111977]
[1740569701711,0.03137177,89008.0,89007.0,0.19283377]
[1740569701919,0.03137177,89008.0,89007.0,0.14922505]
[1740569702799,0.19989577,89008.0,89007.0,0.14822505]
[1740569703100,0.03137177,89008.0,89007.0,0.14922505]
[1740569704329,0.03137177,89008.0,89007.0,0.13946505]
[1740569704533,0.20074417,89008.0,89007.0,0.0561842]
[1740569705063,0.20074417,89008.0,89007.0,0.3812842]
[1740569705290,0.03222017,89008.0,89007.0,1.28204801]
[1740569705491,0.03222017,89008.0,89007.0,1.12328201]
[1740569705713,0.03222017,89008.0,89007.0,1.29180801]
[1740569706467,0.03222017,89008.0,89007.0,1.12328201]
[1740569706655,0.20074417,89008.0,89007.0,1.12328201]
[1740569706847,0.03222017,89008.0,89007.0,1.12328201]
[1740569706997,0.03222017,89008.0,89007.0,1.00942505]
[1740569708565,0.03222017,89008.0,89007.0,1.17795105]
[1740569709228,0.03222017,89008.0,89007.0,1.00942505]
[1740569710495,0.20074417,89008.0,89007.0,1.00942505]
[1740569710709,0.20074417,89008.0,89007.0,0.9178842]
[1740569711059,0.20074417,89008.0,89007.0,0.3812842]
[1740569711476,0.23430042,89008.0,89007.0,0.3812842]
[1740569711879,0.23430042,89008.0,89007.0,0.3715242]
[1740569712722,0.06577642,89008.0,89007.0,0.74864801]
[1740569712920,0.06577642,89008.0,89007.0,0.74764801]
[1740569713125,0.06577642,89008.0,89007.0,0.74864801]
[1740569713889,0.06577642,89008.0,89007.0,0.75840801]
[1740569714060,0.03222017,89008.0,89007.0,0.75740801]
[1740569714618,0.03222017,89008.0,89007.0,0.75840801]
[1740569715051,0.03222017,89008.0,89007.0,0.75740801]
[1740569715246,0.03222017,89008.0,89007.0,0.75840801]
[1740569715450,0.01230012,89008.0,89007.0,0.75940801]
[1740569715857,0.01230012,89008.0,89007.0,0.75840801]
[1740569716033,0.0028484,89008.0,89007.0,0.75940801]
[1740569716714,0.0018484,89008.0,89007.0,0.75840801]
[1740569716984,0.0008484,89008.0,89007.0,1.29400801]
[1740569717171,0.0018484,89008.0,89007.0,1.30000801]
[1740569717516,0.0018484,89008.0,89007.0,1.42875554]
[1740569717920,0.0018484,89008.0,89007.0,1.43475554]
[1740569719340,0.0008484,89008.0,89007.0,1.43375554]
[1740569719537,0.0018484,89008.0,89007.0,1.43475554]
[1740569719785,0.0018484,89008.0,89007.0,1.45694119]
[1740569719984,0.0018484,89008.0,89007.0,1.45094119]
[1740569720312,0.0018484,89008.0,89007.0,1.45794119]
[1740569721710,0.0018484,89008.0,89007.0,1.49171919]
[1740569722158,0.0018484,89008.0,89007.0,1.48195919]
[1740569722354,0.0018484,89008.0,89007.0,1.49171919]
[1740569724080,0.224609,89044.0,89007.0,1.49171919]
[1740569724081,0.3,89050.0,89022.0,0.1272]
[1740569724291,0.168457,89044.0,89037.0,0.01454085]
[1740569724427,0.168453,89046.0,89039.0,0.01454085]
[1740569724670,0.00859911,89046.0,89039.0,0.01454085]
[1740569724868,0.00859911,89046.0,89041.0,0.01454085]
[1740569725065,0.16845,89047.0,89041.0,0.01454085]
[1740569725222,0.168451,89047.0,89041.0,0.01454085]
[1740569725426,0.224596,89049.0,89041.0,0.01454085]
[1740569725623,0.01047553,89045.0,89041.0,0.01461121]
[1740569725821,0.224588,89052.0,89042.0,0.05234831]
[1740569726030,0.003,89050.0,89042.0,0.05234831]
[1740569726602,0.002,89047.0,89043.0,0.01611298]
[1740569726747,0.002,89047.0,89046.0,0.18299285]
[1740569727373,0.0048084,89050.0,89047.0,0.01454085]
[1740569727552,0.0018084,89050.0,89049.0,0.01454085]
[1740569727926,0.0018084,89050.0,89049.0,0.01354085]
[1740569728870,0.0008084,89050.0,89049.0,0.01354085]
[1740569729445,0.02173917,89050.0,89049.0,0.01354085]
[1740569729647,0.02173917,89050.0,89047.0,0.003]
[1740569729802,0.168448,89048.0,89047.0,0.003]
[1740569730016,0.02173917,89050.0,89047.0,0.003]
[1740569730188,0.02173917,89050.0,89049.0,0.168446]
[1740569730396,0.02173917,89050.0,89046.0,0.01454085]
[1740569730614,0.02173917,89050.0,89047.0,0.09682433]
[1740569730822,0.168448,89048.0,89047.0,0.11136518]
[1740569731080,0.168448,89048.0,89043.0,0.33486]
[1740569731081,0.168456,89044.0,89043.0,0.33486]
[1740569731706,0.168456,89044.0,89043.0,0.3251]
[1740569731922,0.17589963,89044.0,89043.0,0.3251]
[1740569732593,0.1968304,89044.0,89043.0,0.3301]
[1740569732741,0.1968304,89044.0,89043.0,0.3251]
[1740569733087,0.1968304,89044.0,89043.0,0.3281]
[1740569734372,0.1968304,89044.0,89043.0,0.3311]
[1740569735338,0.23029185,89044.0,89043.0,0.3311]
[1740569736406,0.64346224,89044.0,89043.0,0.3311]
[1740569737591,0.64346224,89044.0,89043.0,0.3281]
[1740569737806,0.61059185,89044.0,89043.0,0.3281]
[1740569738149,0.58759047,89044.0,89043.0,0.3281]
[1740569738352,0.58759047,89044.0,89043.0,0.3251]
[1740569738761,0.59159047,89044.0,89043.0,0.325524]
[1740569739617,0.168488,89027.0,89026.0,0.3251]
[1740569739825,0.46952331,89027.0,89026.0,0.3251]
[1740569740060,0.468488,89027.0,89026.0,0.3251]
[1740569740237,0.4758621,89027.0,89026.0,0.3251]
[1740569740584,0.49679287,89027.0,89026.0,0.3251]
[1740569740989,0.49679287,89027.0,89026.0,0.3271]
[1740569741672,0.50725294,89027.0,89026.0,0.3271]
[1740569741813,0.50725294,89027.0,89026.0,0.3301]
[1740569743123,0.51549697,89027.0,89026.0,0.3301]
[1740569743564,0.51549697,89027.0,89026.0,0.3281]
[1740569743756,0.51649697,89027.0,89026.0,0.3281]
[1740569744352,0.51649697,89027.0,89026.0,0.3251]
[1740569744937,0.51549697,89027.0,89026.0,0.3251]
[1740569745137,0.51649697,89027.0,89026.0,0.3251]
[1740569751558,0.51649697,89027.0,89026.0,0.325524]
[1740569751756,0.4955662,89027.0,89026.0,0.325524]
[1740569753663,0.48510613,89027.0,89026.0,0.325524]
[1740569754635,0.50597762,89027.0,89026.0,0.325524]
[1740569755786,0.50597762,89027.0,89026.0,0.000424]
[1740569756747,0.51641388,89027.0,89026.0,0.000424]
[1740569757821,0.51541388,89027.0,89026.0,0.000424]
[1740569758181,0.51939206,89027.0,89026.0,0.000424]
[1740569758411,0.55826245,89027.0,89026.0,1e-06]
[1740569759772,0.52239206,89027.0,89026.0,1e-06]
[1740569765488,0.55826245,89027.0,89026.0,1e-06]
[1740569765693,0.52239206,89027.0,89026.0,1e-06]
[1740569767001,0.46851,89015.0,89014.0,0.3251]
[1740569767203,0.47579974,89015.0,89014.0,0.3251]
[1740569767399,0.49667123,89015.0,89014.0,0.3251]
[1740569768192,0.49679664,89015.0,89014.0,0.3251]
[1740569768318,0.49679664,89015.0,89014.0,0.3261]
[1740569768521,0.49679664,89015.0,89014.0,0.3281]
[1740569769273,0.51897568,89015.0,89014.0,0.3281]
[1740569769693,0.49810419,89015.0,89014.0,0.3281]
[1740569770092,0.02959419,89015.0,89014.0,0.3281]
[1740569770294,0.1991395,89015.0,89014.0,0.3281]
[1740569770720,0.20962324,89015.0,89014.0,0.3281]
[1740569770922,0.23059073,89015.0,89014.0,0.3281]
[1740569771154,0.22955542,89015.0,89014.0,0.3281]
[1740569773883,0.22955542,89015.0,89014.0,0.3251]
[1740569774034,0.23255542,89015.0,89014.0,0.3251]
[1740569774526,0.23055542,89015.0,89014.0,0.3251]
[1740569774996,0.06204542,89015.0,89014.0,0.4035]
[1740569775206,0.22326568,89015.0,89014.0,0.4035]
[1740569775414,0.2305528,89015.0,89014.0,0.4035]
[1740569776052,0.0630428,89015.0,89014.0,0.46694085]
[1740569776272,0.2305528,89015.0,89014.0,1.05070146]
[1740569776471,0.22226568,89015.0,89014.0,1.05070146]
[1740569776676,0.03886376,89015.0,89014.0,1.05170146]
[1740569776919,0.03886376,89015.0,89014.0,1.06146146]
[1740569777122,0.20008664,89015.0,89014.0,1.06146146]
[1740569777425,0.20742081,89015.0,89014.0,1.01672495]
[1740569777626,0.20742081,89015.0,89014.0,1.01572495]
[1740569777798,0.20742081,89015.0,89014.0,1.00596495]
[1740569777999,0.20742081,89015.0,89014.0,1.00896495]
[1740569778922,0.20742081,89015.0,89014.0,0.9944241]
[1740569779562,0.20742081,89015.0,89014.0,0.9924241]
[1740569779767,0.20742081,89015.0,89014.0,1.00696495]
[1740569779971,0.20842081,89015.0,89014.0,1.00396495]
[1740569780490,0.20842081,89015.0,89014.0,1.00496495]
[1740569780691,0.20742081,89015.0,89014.0,1.00396495]
[1740569780899,0.20742081,89015.0,89014.0,1.10537987]
[1740569781225,0.00378371,89015.0,89014.0,1.10537987]
[1740569781422,0.168509,89016.0,89015.0,0.01454085]
[1740569781737,0.17525664,89016.0,89015.0,0.01454085]
[1740569782313,0.17525664,89016.0,89015.0,0.33964085]
[1740569783304,0.17525664,89016.0,89015.0,0.3251]
[1740569783484,0.17629195,89016.0,89015.0,0.3281]
[1740569783921,0.17629195,89016.0,89015.0,0.3251]
[1740569784983,0.47629195,89016.0,89015.0,0.3251]
[1740569785180,0.47525664,89016.0,89015.0,0.3251]
[1740569785905,0.47725664,89016.0,89015.0,0.3251]
[1740569786545,0.48025664,89016.0,89015.0,0.3251]
[1740569788529,0.48021664,89016.0,89015.0,0.3251]
[1740569789759,0.48106484,89016.0,89015.0,0.3251]
[1740569793887,0.49154825,89016.0,89015.0,0.3251]
[1740569794324,0.5125155,89016.0,89015.0,0.3251]
[1740569794535,0.5271352,89016.0,89015.0,0.3251]
[1740569794661,0.5301352,89016.0,89015.0,0.3251]
[1740569795098,0.5281352,89016.0,89015.0,0.3251]
[1740569795492,0.5301352,89016.0,89015.0,0.3251]
[1740569795902,0.5271352,89016.0,89015.0,0.3251]
[1740569796138,0.5281352,89016.0,89015.0,0.3251]
[1740569796362,0.5301352,89016.0,89015.0,0.3251]
[1740569801468,0.5125155,89016.0,89015.0,0.3251]
[1740569802179,0.5125155,89016.0,89015.0,0.3255241]
[1740569803266,0.04397156,89016.0,89015.0,0.3255241]
[1740569803475,0.21248056,89016.0,89015.0,0.3255241]
[1740569805675,0.04397156,89016.0,89015.0,0.55651977]
[1740569805894,0.05491853,89016.0,89015.0,0.55651977]
[1740569806177,0.22342753,89016.0,89015.0,0.55651977]
[1740569806397,0.22342753,89016.0,89015.0,0.47026495]
[1740569807749,0.05491853,89016.0,89015.0,0.47026495]
[1740569807957,0.22342753,89016.0,89015.0,0.47026495]
[1740569808872,0.22042753,89016.0,89015.0,0.47026495]
[1740569809087,0.21842753,89016.0,89015.0,0.47026495]
[1740569809291,0.05291853,89016.0,89015.0,0.73950386]
[1740569809650,0.05091853,89016.0,89015.0,0.73950386]
[1740569809851,0.05091853,89016.0,89015.0,0.74050386]
[1740569811277,0.03329886,89016.0,89015.0,0.74050386]
[1740569811848,0.03229886,89016.0,89015.0,0.74150386]
[1740569811983,0.03229886,89016.0,89015.0,1.27810386]
[1740569812179,0.03229886,89016.0,89015.0,1.28110386]
[1740569812985,0.03229886,89016.0,89015.0,1.27610386]
[1740569813136,0.03329886,89016.0,89015.0,1.28210386]
[1740569813334,0.03429886,89016.0,89015.0,1.28710386]
[1740569814183,0.03429886,89016.0,89015.0,1.42085139]
[1740569814559,0.01333161,89016.0,89015.0,1.42085139]
[1740569815102,0.01133161,89016.0,89015.0,1.40985139]
[1740569815332,0.0008482,89027.0,89026.0,0.16849]
[1740569815535,0.0008482,89027.0,89026.0,0.30720289]
[1740569815852,0.0184629,89027.0,89026.0,0.43937838]
[1740569816054,0.0184629,89027.0,89026.0,1.30107838]
[1740569816256,0.0184629,89027.0,89026.0,1.32107838]
[1740569816443,0.0008084,89050.0,89026.0,1.32107838]
[1740569816444,0.0343223,89049.0,89040.0,0.168463]
[1740569816646,0.00093264,89041.0,89040.0,0.3186558]
[1740569816929,0.00093264,89041.0,89040.0,0.31708385]
[1740569818117,0.00093264,89041.0,89040.0,1.29953138]
[1740569818815,0.00093264,89041.0,89040.0,1.31953138]
[1740569819056,0.00093264,89041.0,89040.0,1.39200774]
[1740569820153,0.00093264,89041.0,89040.0,1.37532774]
[1740569820359,0.00093264,89041.0,89040.0,1.38500774]
[1740569820571,0.00093264,89041.0,89040.0,0.52330774]
[1740569820949,0.00093264,89041.0,89040.0,0.51630774]
[1740569821149,0.00093264,89041.0,89040.0,0.52330774]
[1740569821992,0.00093264,89041.0,89040.0,0.53030774]
[1740569822171,0.00093264,89041.0,89040.0,0.52330774]
[1740569822374,0.00093264,89041.0,89040.0,0.38788021]
[1740569822572,0.00093264,89041.0,89040.0,0.39756021]
[1740569822996,0.00093264,89041.0,89040.0,0.14908]
[1740569823157,0.16939364,89041.0,89040.0,0.14908]
[1740569823358,0.16939364,89041.0,89040.0,0.014]
[1740569823940,0.00093264,89041.0,89040.0,0.014]
[1740569824147,0.00093264,89041.0,89040.0,0.00857216]
[1740569824284,0.00093264,89041.0,89040.0,0.07078537]
[1740569824484,0.00093264,89041.0,89040.0,0.07778537]
[1740569824839,0.18700753,89041.0,89040.0,0.007]
[1740569825030,0.48700753,89041.0,89040.0,0.012]
[1740569825845,0.168495,89023.0,89020.0,0.01454085]
[1740569825983,0.30103531,89040.0,89020.0,0.01454085]
[1740569826180,0.168498,89022.0,89015.0,0.01496495]
[1740569826384,0.3,89040.0,89015.0,0.01496495]
[1740569826628,0.168509,89016.0,89015.0,0.0101041]
[1740569827063,0.168509,89016.0,89015.0,0.0004241]
[1740569827997,0.18612828,89016.0,89015.0,0.0004241]
[1740569828380,0.20797446,89016.0,89015.0,0.0074241]
[1740569828578,0.2183977,89016.0,89015.0,0.0074241]
[1740569828784,0.2183977,89016.0,89015.0,0.0134241]
[1740569828987,0.2183977,89016.0,89015.0,0.02796495]
[1740569829199,0.2173977,89016.0,89015.0,0.02096495]
[1740569829374,0.2183977,89016.0,89015.0,0.02196495]
[1740569829575,0.2183977,89016.0,89015.0,0.02696495]
[1740569830923,0.0498887,89016.0,89015.0,0.02696495]
[1740569831120,0.0498887,89016.0,89015.0,0.10356495]
[1740569831338,0.03226942,89016.0,89015.0,0.10356495]
[1740569831916,0.20077842,89016.0,89015.0,0.10356495]
[1740569832118,0.03226942,89016.0,89015.0,0.10356495]
[1740569832749,0.20077842,89016.0,89015.0,0.10356495]
[1740569833170,0.03226942,89016.0,89015.0,0.10356495]
[1740569833330,0.19035518,89016.0,89015.0,0.10356495]
[1740569833769,0.02184618,89016.0,89015.0,0.10356495]
[1740569833972,0.19035518,89016.0,89015.0,0.02696495]
[1740569834345,0.02184618,89016.0,89015.0,0.02696495]
[1740569835249,0.19035518,89016.0,89015.0,0.02696495]
[1740569835774,0.20797413,89016.0,89015.0,0.02696495]
[1740569836507,0.20797413,89016.0,89015.0,0.0124241]
[1740569836887,0.50697413,89016.0,89015.0,0.0054241]
[1740569837083,0.5174048,89016.0,89015.0,0.0054241]
[1740569837689,0.5174048,89016.0,89015.0,0.0094241]
[1740569837900,0.5174048,89016.0,89015.0,0.0044241]
[1740569838107,0.5174048,89016.0,89015.0,0.0004241]
[1740569838431,0.5174048,89016.0,89015.0,0.0034241]
[1740569838618,0.5174048,89016.0,89015.0,0.0004241]
[1740569838869,0.5174048,89016.0,89015.0,0.0044241]
[1740569839259,0.5174048,89016.0,89015.0,0.0024241]
[1740569840053,0.55327519,89016.0,89015.0,0.0004241]
[1740569840457,0.5174048,89016.0,89015.0,0.0004241]
[1740569840671,0.5174048,89016.0,89015.0,0.0014241]
[1740569841243,0.49978585,89016.0,89015.0,0.0004241]
[1740569841447,0.50278585,89016.0,89015.0,0.0004241]
[1740569841649,0.53613809,89016.0,89015.0,0.0004241]
[1740569843160,0.53613809,89016.0,89015.0,0.01496495]
[1740569843567,0.06762909,89016.0,89015.0,0.18347495]
[1740569844410,0.06462909,89016.0,89015.0,0.18347495]
[1740569844633,0.06462909,89016.0,89015.0,0.18647495]
[1740569844836,0.03127685,89016.0,89015.0,0.09431185]
[1740569844968,0.19978585,89016.0,89015.0,0.01496495]
[1740569845171,0.19978585,89016.0,89015.0,0.02296495]
[1740569845575,0.19978585,89016.0,89015.0,0.0054241]
[1740569845792,0.21740569,89016.0,89015.0,0.0054241]
[1740569845994,0.20697502,89016.0,89015.0,0.0054241]
[1740569846973,0.20697502,89016.0,89015.0,0.0074241]
[1740569847536,0.20697502,89016.0,89015.0,0.0054241]
[1740569847758,0.20697502,89016.0,89015.0,0.0024241]